bitfinex/quotes_SOLUSD_20240614
["timestamp","ask_amount","ask_price","bid_price","bid_amount"]
[1718347496993,0.34,147.92,147.87,20.0]
[1718347497198,0.34,147.91,147.85,2.5025]
[1718347497573,0.34,147.91,147.84,2.5026]
[1718347498106,41.3672,147.94,147.87,2.5021]
[1718347498303,0.34,147.93,147.87,2.5021]
[1718347498516,0.34,147.93,147.86,2.5022]
[1718347500577,0.34,147.93,147.85,20.0]
[1718347500777,7.9206,147.91,147.82,15.215]
[1718347501079,0.17,147.87,147.78,18.1582]
[1718347501282,0.17,147.87,147.79,2.5035]
[1718347501487,0.68,147.87,147.79,2.5035]
[1718347501691,0.68,147.87,147.8,2.5033]
[1718347501911,0.68,147.87,147.79,2.5034]
[1718347502082,0.68,147.87,147.8,2.5033]
[1718347502278,107.9206,147.91,147.76,54.31062385]
[1718347502279,40.71,147.93,147.81,42.9347]
[1718347502478,107.9206,147.96,147.82,91.7293294]
[1718347502807,100.6572,147.94,147.83,2.5028]
[1718347503108,6.1069,147.92,147.82,28.1093294]
[1718347503315,40.71,147.89,147.81,2.5031]
[1718347503492,100.0,147.91,147.78,8.1093294]
[1718347503493,40.71,147.85,147.78,8.1093294]
[1718347503809,0.17,147.8,147.71,15.4254]
[1718347504008,0.34,147.8,147.71,15.4254]
[1718347504219,0.68,147.8,147.72,2.5046]
[1718347504389,0.68,147.8,147.71,17.9302]
[1718347504709,286.39,147.8,147.69,8.1093294]
[1718347504921,140.88,147.78,147.69,8.1093294]
[1718347505093,0.34,147.77,147.69,8.1093294]
[1718347505421,0.17,147.83,147.71,23.4597]
[1718347505638,106.2888,147.83,147.72,8.86260718]
[1718347505839,0.17,147.79,147.7,16.2365]
[1718347506027,0.17,147.79,147.7,25.09910718]
[1718347506438,0.17,147.79,147.72,2.5047]
[1718347506752,40.71,147.8,147.7,8.86260718]
[1718347506921,0.17,147.78,147.7,11.36760718]
[1718347507117,0.17,147.78,147.71,20.0]
[1718347507421,0.17,147.78,147.7,8.86260718]
[1718347507422,0.17,147.76,147.7,8.86260718]
[1718347507622,86.39,147.76,147.7,8.86260718]
[1718347507827,0.17,147.74,147.66,15.7984]
[1718347508030,0.51,147.74,147.66,24.66100718]
[1718347508415,40.88,147.73,147.66,8.86260718]
[1718347508635,0.34,147.72,147.66,8.86260718]
[1718347509626,0.34,147.72,147.67,20.0]
[1718347510229,6.8009,147.71,147.6,31.39546052]
[1718347510434,47.1709,147.73,147.65,2.5057]
[1718347510757,0.34,147.72,147.64,2.506]
[1718347511421,0.34,147.72,147.65,2.5059]
[1718347512017,7.9206,147.76,147.67,2.5054]
[1718347512018,0.17,147.75,147.67,2.5054]
[1718347512224,48.6306,147.76,147.68,2.5053]
[1718347513430,7.9206,147.76,147.68,2.5053]
[1718347513952,253.1,147.82,147.68,2.5053]
[1718347513953,106.2394,147.85,147.71,38.93]
[1718347514161,106.2394,147.85,147.72,67.6746]
[1718347514367,106.2394,147.85,147.73,2.5045]
[1718347514659,40.71,147.84,147.74,2.5043]
[1718347515074,40.71,147.84,147.74,20.0]
[1718347515252,40.71,147.84,147.74,22.5043]
[1718347515931,40.71,147.84,147.74,20.0]
[1718347516337,40.71,147.82,147.74,20.0]
[1718347516626,40.71,147.82,147.74,22.5043]
[1718347517252,0.34,147.81,147.74,22.5043]
[1718347518762,40.71,147.88,147.75,22.4175]
[1718347519057,40.71,147.88,147.77,18.45]
[1718347519261,40.71,147.88,147.78,22.5036]
[1718347519467,40.71,147.85,147.78,20.0]
[1718347520155,40.71,147.85,147.78,2.5037]
[1718347520530,40.71,147.87,147.78,20.0]
[1718347520957,0.33333333,147.86,147.78,20.0]
[1718347521258,0.33333333,147.86,147.77,2.5038]
[1718347521429,0.51,147.85,147.77,22.5038]
[1718347522258,0.34,147.85,147.79,2.5035]
[1718347522462,40.71,147.89,147.8,2.5032]
[1718347522762,40.71,147.91,147.84,2.5026]
[1718347523055,40.71,147.91,147.84,22.5026]
[1718347523558,40.71,147.92,147.84,22.5026]
[1718347524062,40.71,147.92,147.84,20.0]
[1718347524230,40.71,147.92,147.84,22.5027]
[1718347524860,0.51,147.91,147.84,22.5027]
[1718347526254,0.17,147.89,147.79,25.2024]
[1718347526467,40.71,147.86,147.79,16.4987]
[1718347526672,0.68,147.85,147.79,16.4987]
[1718347527038,40.71,147.84,147.79,16.4987]
[1718347527251,0.17,147.83,147.79,16.4987]
[1718347527447,40.71,147.84,147.79,16.4987]
[1718347527649,40.71,147.91,147.83,2.5028]
[1718347527850,40.71,147.91,147.84,2.5026]
[1718347528248,40.71,147.91,147.82,2.503]
[1718347528565,40.71,147.92,147.82,2.503]
[1718347528766,40.71,147.92,147.82,22.503]
[1718347528965,100.0,147.93,147.82,20.0]
[1718347528966,40.71,147.9,147.82,20.0]
[1718347529145,40.71,147.9,147.81,20.0]
[1718347529460,0.68,147.89,147.81,20.0]
[1718347530368,0.68,147.89,147.81,22.5031]
[1718347530561,0.68,147.89,147.81,20.0]
[1718347531071,0.68,147.89,147.81,22.5031]
[1718347531970,0.68,147.89,147.81,20.0]
[1718347532160,0.68,147.89,147.82,2.503]
[1718347532467,0.68,147.89,147.81,22.5031]
[1718347532957,40.71,147.92,147.83,2.5027]
[1718347533159,0.68,147.91,147.83,2.5027]
[1718347533370,40.71,147.92,147.82,50.0059]
[1718347533557,40.71,147.92,147.84,2.5026]
[1718347533755,40.71,147.92,147.83,20.0]
[1718347533756,41.3672,147.94,147.85,2.5024]
[1718347533965,41.3672,147.94,147.86,2.5023]
[1718347534288,41.3672,147.94,147.85,20.0]
[1718347534567,41.3672,147.94,147.86,2.5023]
[1718347534967,41.3672,147.94,147.87,6.5164]
[1718347535145,41.3672,147.94,147.88,20.0]
[1718347535346,0.6572,147.94,147.88,22.502]
[1718347535580,0.6572,147.94,147.89,2.5018]
[1718347536284,0.6572,147.94,147.9,2.5016]
[1718347536488,0.6572,147.94,147.89,2.5017]
[1718347536668,0.6572,147.94,147.88,20.0]
[1718347536872,0.6572,147.94,147.9,2.5016]
[1718347537275,0.6572,147.94,147.89,2.5017]
[1718347537474,0.6572,147.94,147.9,2.5016]
[1718347537666,0.6572,147.94,147.89,2.5018]
[1718347538557,0.6572,147.94,147.88,20.0]
[1718347538760,0.6572,147.94,147.9,2.5015]
[1718347538980,0.6572,147.94,147.91,15.1253]
[1718347539186,0.6572,147.94,147.92,20.0]
[1718347540480,0.6572,147.94,147.92,22.5013]
[1718347541771,0.8337529,148.01,147.93,6.2227]
[1718347542003,0.8337529,148.01,147.94,65.0]
[1718347542205,0.8337529,148.01,147.95,2.5007]
[1718347542406,0.8337529,148.01,147.96,2.5006]
[1718347542690,0.8337529,148.01,147.94,65.0]
[1718347542890,0.8337529,148.01,147.96,2.5005]
[1718347544011,0.8337529,148.01,147.94,65.0]
[1718347544188,0.8337529,148.01,147.94,20.0]
[1718347544509,0.8337529,148.01,147.91,20.1281]
[1718347544801,6.509,148.0,147.91,15.1253]
[1718347544978,6.509,148.0,147.92,2.5013]
[1718347545879,6.509,148.0,147.92,67.5013]
[1718347546378,0.17,148.0,147.93,2.5011]
[1718347546579,0.51,148.0,147.93,22.5011]
[1718347547100,0.17,148.0,147.93,22.5011]
[1718347547404,0.8337529,148.01,147.93,22.5011]
[1718347547775,0.8337529,148.01,147.94,2.501]
[1718347548096,0.8337529,148.01,147.97,2.5003]
[1718347548598,0.8337529,148.01,147.96,47.5005]
[1718347548782,0.8337529,148.01,147.97,22.5004]
[1718347548983,0.8337529,148.01,147.97,20.0]
[1718347549900,0.8337529,148.01,147.95,20.0]
[1718347550105,0.8337529,148.01,147.95,2.5008]
[1718347551008,0.8337529,148.01,147.94,2.5009]
[1718347551477,0.8337529,148.01,147.94,22.5009]
[1718347554206,0.8337529,148.01,147.94,20.0]
[1718347554389,0.8337529,148.01,147.94,22.501]
[1718347554592,0.51,148.0,147.92,2.5012]
[1718347555781,0.51,148.0,147.92,47.5012]
[1718347557007,0.51,148.0,147.93,20.0]
[1718347558910,0.51,148.0,147.94,8.11449507]
[1718347559102,0.51,148.0,147.95,8.11449507]
[1718347559320,0.51,148.0,147.96,8.11449507]
[1718347559616,0.51,148.0,147.97,8.11449507]
[1718347559992,0.51,148.0,147.98,8.11449507]
[1718347560289,0.51,148.0,147.99,8.11449507]
[1718347561023,0.51,148.0,147.93,20.0]
[1718347561218,0.51,148.0,147.94,8.11437732]
[1718347561505,0.51,148.0,147.95,8.11437732]
[1718347561713,0.51,148.0,147.96,8.11437732]
[1718347561911,0.51,148.0,147.97,8.11437732]
[1718347562113,40.88,147.98,147.9,8.86260718]
[1718347562318,40.88,147.98,147.91,8.11493246]
[1718347562319,6.5229,147.97,147.91,8.11493246]
[1718347562488,0.34,147.96,147.92,8.11493246]
[1718347562684,0.17,147.96,147.93,8.11493246]
[1718347563112,0.17,147.96,147.89,2.5018]
[1718347563298,47.0629,147.97,147.89,2.5018]
[1718347565018,47.0629,147.97,147.89,22.5018]
[1718347565316,47.0629,147.97,147.9,2.5016]
[1718347565524,47.0629,147.97,147.9,22.5016]
[1718347566511,47.0629,147.97,147.9,20.0]
[1718347566718,6.1829,147.97,147.9,20.0]
[1718347566928,8.5775,147.99,147.91,55.61640191]
[1718347567213,8.5775,147.99,147.92,28.11510191]
[1718347567619,8.5775,147.99,147.93,8.11510191]
[1718347568510,0.51,147.98,147.92,20.0]
[1718347568712,0.51,147.98,147.9,20.0]
[1718347570320,0.8337529,148.01,147.93,2.5011]
[1718347570507,0.8337529,148.01,147.92,38.42]
[1718347570711,0.8337529,148.01,147.94,2.5009]
[1718347571020,0.8337529,148.01,147.94,22.5008]
[1718347571413,0.8337529,148.01,147.95,2.5008]
[1718347571615,0.8337529,148.01,147.95,20.0]
[1718347572302,0.8337529,148.01,147.95,22.5008]
[1718347572508,0.8337529,148.01,147.95,2.5008]
[1718347572708,0.8337529,148.01,147.95,47.5008]
[1718347573122,0.8337529,148.01,147.95,83.73]
[1718347573330,0.8337529,148.01,147.97,2.5004]
[1718347573530,0.8337529,148.01,147.97,47.5004]
[1718347573700,0.8337529,148.01,147.98,20.0]
[1718347574028,0.8337529,148.01,147.98,21.34989168]
[1718347575109,0.8337529,148.01,147.98,20.0]
[1718347575431,0.8337529,148.01,147.91,20.31]
[1718347575723,0.8337529,148.01,147.92,10.61446269]
[1718347576025,0.8337529,148.01,147.92,2.5012]
[1718347576627,0.8337529,148.01,147.93,2.5011]
[1718347577301,0.8337529,148.01,147.92,67.5012]
[1718347578222,0.8337529,148.01,147.93,10.6151064]
[1718347578531,0.8337529,148.01,147.94,20.0]
[1718347579118,0.8337529,148.01,147.93,22.5011]
[1718347579330,0.8337529,148.01,147.94,8.11366181]
[1718347579532,0.8337529,148.01,147.95,67.5007]
[1718347580405,0.8337529,148.01,147.95,65.0]
[1718347580625,0.8337529,148.01,147.96,10.61339138]
[1718347580830,0.8337529,148.01,147.95,67.5007]
[1718347581032,0.8337529,148.01,147.96,8.11275014]
[1718347581438,0.8337529,148.01,147.97,22.5004]
[1718347581623,0.8337529,148.01,147.97,65.0]
[1718347582228,0.8337529,148.01,147.98,8.11199915]
[1718347585350,0.8337529,148.01,147.99,20.0]
[1718347586156,0.8337529,148.01,147.98,22.5003]
[1718347586322,0.8337529,148.01,147.99,8.11137294]
[1718347586523,0.8337529,148.01,148.0,20.0]
[1718347587163,0.8337529,148.01,147.98,20.0]
[1718347587332,0.8337529,148.01,147.99,8.1113776]
[1718347587530,0.8337529,148.01,148.0,20.0]
[1718347588052,0.8337529,148.01,147.98,20.0]
[1718347588232,0.8337529,148.01,147.99,8.11138565]
[1718347588436,0.8337529,148.01,148.0,20.0]
[1718347588649,9.4112529,148.01,147.95,8.37221829]
[1718347589353,15.7685529,148.01,147.95,8.37221829]
[1718347589838,0.17,148.0,147.95,8.37221829]
[1718347590040,0.17,148.0,147.91,42.41321829]
[1718347590041,0.68,148.0,147.91,42.41321829]
[1718347590346,0.68,148.0,147.92,16.48653838]
[1718347590726,0.68,148.0,147.93,8.11432009]
[1718347591866,0.8337529,148.01,147.94,18.42]
[1718347592054,0.8337529,148.01,147.95,73.11432009]
[1718347592234,0.8337529,148.01,147.97,2.5004]
[1718347592440,0.8337529,148.01,147.98,8.11432009]
[1718347592653,0.8337529,148.01,147.99,20.0]
[1718347593322,0.8337529,148.01,147.98,20.0]
[1718347593864,0.8337529,148.01,147.96,20.0]
[1718347594063,0.8337529,148.01,147.97,53.11158191]
[1718347594227,0.8337529,148.01,147.98,28.11158191]
[1718347594425,0.8337529,148.01,147.98,20.0]
[1718347594628,0.8337529,148.01,147.99,53.11133868]
[1718347594921,0.8337529,148.01,148.0,20.0]
[1718347596528,0.8337529,148.01,148.0,73.11059786]
[1718347597962,0.8337529,148.01,148.0,20.0]
[1718347598332,0.8337529,148.01,147.99,20.0]
[1718347598532,0.8337529,148.01,147.98,2.5003]
[1718347598847,0.8337529,148.01,147.97,40.31]
[1718347599046,0.8337529,148.01,147.98,28.42088977]
[1718347599254,0.8337529,148.01,147.99,8.11088977]
[1718347599455,0.8337529,148.01,148.0,20.0]
[1718347599644,0.8337529,148.01,148.0,65.0]
[1718347599843,0.8337529,148.01,148.0,73.11029866]
[1718347600443,0.8337529,148.01,148.0,65.0]
[1718347601658,0.8337529,148.01,148.0,20.0]
[1718347602155,0.8337529,148.01,147.98,22.5003]
[1718347602365,0.8337529,148.01,147.99,47.5001]
[1718347602547,0.8337529,148.01,148.0,20.0]
[1718347605645,0.8337529,148.01,148.0,65.0]
[1718347608165,0.8337529,148.01,148.0,88.28023674]
[1718347608342,0.8337529,148.01,148.0,75.78023674]
[1718347608742,0.8337529,148.01,148.0,67.5]
[1718347608958,0.8337529,148.01,148.0,67.67]
[1718347609357,0.8337529,148.01,148.0,75.77999248]
[1718347609868,0.8337529,148.01,148.0,65.0]
[1718347610069,0.8337529,148.01,148.0,73.11004077]
[1718347610468,0.8337529,148.01,148.0,20.0]
[1718347610641,0.8337529,148.01,147.98,2.5002]
[1718347610848,0.8337529,148.01,147.98,47.5002]
[1718347611767,0.8337529,148.01,147.97,7.90927385]
[1718347612492,0.8337529,148.01,147.97,28.21927385]
[1718347612768,0.8337529,148.01,147.97,7.90927385]
[1718347612977,0.8337529,148.01,147.97,2.5003]
[1718347613168,0.8337529,148.01,147.96,10.40987385]
[1718347613471,0.8337529,148.01,147.97,10.61250774]
[1718347613771,0.8337529,148.01,147.96,10.40977385]
[1718347613972,0.8337529,148.01,147.97,8.11185117]
[1718347614177,15.9605529,148.01,147.91,7.35693592]
[1718347614473,0.17,148.0,147.92,8.11364557]
[1718347614673,0.51,148.0,147.92,8.11364557]
[1718347615761,0.51,148.0,147.93,22.5011]
[1718347616161,0.51,148.0,147.93,2.5011]
[1718347616469,15.9605529,148.01,147.94,8.11373821]
[1718347616647,15.9605529,148.01,147.95,20.0]
[1718347617572,15.9605529,148.01,147.96,10.61324078]
[1718347617780,15.9605529,148.01,147.97,28.11274078]
[1718347617781,0.8337529,148.01,147.97,28.11274078]
[1718347617957,0.8337529,148.01,147.97,22.5003]
[1718347618451,0.8337529,148.01,147.97,2.5003]
[1718347618655,0.8337529,148.01,147.98,20.0]
[1718347618955,0.8337529,148.01,147.97,2.5003]
[1718347619560,0.8337529,148.01,147.98,2.5003]
[1718347619755,0.8337529,148.01,147.96,38.73]
[1718347619756,0.8337529,148.01,147.97,67.6704]
[1718347619956,0.8337529,148.01,147.98,8.11160694]
[1718347620256,0.8337529,148.01,147.99,20.0]
[1718347620876,0.8337529,148.01,147.98,22.5003]
[1718347621169,0.8337529,148.01,147.99,45.0]
[1718347621380,0.8337529,148.01,148.0,20.0]
[1718347622383,0.8337529,148.01,148.0,28.11090303]
[1718347622678,0.8337529,148.01,148.0,73.11090303]
[1718347623190,0.8337529,148.01,148.0,93.42090303]
[1718347623376,6.2367,148.13,148.02,15.5353]
[1718347623587,0.8337529,148.16,148.08,20.9186]
[1718347623895,0.8337529,148.16,148.09,22.4984]
[1718347624066,0.8337529,148.16,148.09,29.65218593]
[1718347624592,0.8337529,148.16,148.09,32.15058593]
[1718347624759,0.8337529,148.16,148.09,29.65218593]
[1718347625254,0.8337529,148.16,148.09,20.0]
[1718347625450,141.5437529,148.16,148.04,9.65218593]
[1718347625682,41.5437529,148.16,148.05,8.10659008]
[1718347625878,41.5437529,148.16,148.06,9.83187481]
[1718347626390,0.34,148.15,148.06,12.33077481]
[1718347626596,0.8337529,148.16,148.09,0.17]
[1718347626766,0.8337529,148.16,148.14,2.4976]
[1718347626966,0.8337529,148.16,148.15,2.6674]
[1718347627186,0.8337529,148.16,148.14,0.17]
[1718347627478,0.8337529,148.16,148.15,2.6674]
[1718347627681,0.8337529,148.16,148.15,3.0074]
[1718347627989,0.29,148.21,148.19,2.4967]
[1718347628303,0.29,148.21,148.2,20.9166]
[1718347628489,0.29,148.21,148.2,86.0866]
[1718347628802,6.83632286,148.26,148.21,0.17]
[1718347629105,0.8337529,148.31,148.21,42.9764]
[1718347629300,0.8337529,148.31,148.23,20.31]
[1718347629484,0.8337529,148.31,148.24,65.0]
[1718347630195,0.8337529,148.31,148.26,2.4955]
[1718347630705,0.8337529,148.31,148.27,2.4954]
[1718347630880,0.8337529,148.31,148.26,2.4955]
[1718347631082,0.8337529,148.31,148.26,2.4956]
[1718347631401,0.8337529,148.31,148.25,23.1457]
[1718347631615,0.8337529,148.31,148.26,65.0]
[1718347631783,0.8337529,148.31,148.26,20.0]
[1718347631989,0.8337529,148.31,148.27,0.9973131]
[1718347632180,0.8337529,148.31,148.26,20.0]
[1718347632393,0.8337529,148.31,148.2,2.4966]
[1718347632596,0.8337529,148.31,148.19,51.31432187]
[1718347632597,0.17,148.3,148.21,9.83187481]
[1718347632785,0.68,148.3,148.21,9.83187481]
[1718347632994,0.51,148.3,148.21,9.83187481]
[1718347633197,6.5156,148.28,148.17,2.4971]
[1718347633395,0.51,148.27,148.17,9.83187481]
[1718347633599,6.5156,148.28,148.18,20.31]
[1718347633914,10.2444,148.3,148.21,22.8064]
[1718347634122,0.8337529,148.31,148.22,2.4962]
[1718347634306,0.8337529,148.31,148.22,12.32807481]
[1718347634505,0.8337529,148.31,148.23,20.0]
[1718347634690,0.8337529,148.31,148.23,40.31]
[1718347634889,0.8337529,148.31,148.24,0.17]
[1718347635086,0.8337529,148.31,148.24,55.00187481]
[1718347635410,0.8337529,148.31,148.25,20.0]
[1718347635587,0.8337529,148.31,148.26,45.0]
[1718347635791,0.8337529,148.31,148.27,20.0]
[1718347637490,0.8337529,148.31,148.25,20.0]
[1718347638018,0.17,148.3,148.19,8.9926]
[1718347638204,0.51,148.3,148.21,9.83187481]
[1718347638821,10.4144,148.26,148.14,6.1414]
[1718347639122,100.34,148.25,148.14,6.1414]
[1718347639324,0.17,148.24,148.12,29.59587048]
[1718347639524,50.7944,148.26,148.12,9.28587048]
[1718347639823,10.2444,148.26,148.12,9.28587048]
[1718347640000,100.51,148.25,148.14,2.4975]
[1718347640199,0.51,148.25,148.14,2.4975]
[1718347640495,0.17,148.25,148.16,0.17]
[1718347640689,10.2444,148.26,148.16,20.65]
[1718347641203,10.2444,148.26,148.17,45.0]
[1718347641600,10.2444,148.26,148.16,0.17]
[1718347641601,10.2444,148.26,148.18,20.0]
[1718347641806,10.2444,148.26,148.17,20.0]
[1718347642521,47.1452,148.28,148.18,67.9768]
[1718347642522,6.5952,148.28,148.18,67.9768]
[1718347642816,6.5952,148.28,148.19,20.0]
[1718347643002,47.1452,148.28,148.19,20.0]
[1718347643616,6.5952,148.28,148.2,45.0]
[1718347643813,6.5952,148.28,148.21,20.0]
[1718347644395,11.0781529,148.31,148.21,20.0]
[1718347644620,11.0781529,148.31,148.22,45.0]
[1718347644831,11.0781529,148.31,148.23,20.0]
[1718347644996,51.6281529,148.31,148.23,20.0]
[1718347645490,0.17,148.3,148.21,20.0]
[1718347645691,0.68,148.3,148.22,45.0]
[1718347645903,0.68,148.3,148.23,20.0]
[1718347646319,0.17,148.3,148.23,20.0]
[1718347646620,0.8337529,148.31,148.23,20.0]
[1718347646927,0.8337529,148.31,148.24,45.0]
[1718347647126,0.8337529,148.31,148.25,20.0]
[1718347647626,0.8337529,148.31,148.26,45.0]
[1718347647824,0.8337529,148.31,148.27,20.0]
[1718347648201,141.3837529,148.31,148.2,9.28587048]
[1718347648398,41.3837529,148.31,148.2,9.28587048]
[1718347649225,40.55,148.28,148.17,36.0788]
[1718347649525,0.17,148.27,148.18,42.8069]
[1718347649707,0.17,148.28,148.18,49.59587048]
[1718347649903,0.17,148.27,148.18,29.28587048]
[1718347650814,0.34,148.27,148.18,29.28587048]
[1718347651406,0.34,148.26,148.18,29.28587048]
[1718347651715,0.34,148.26,148.18,20.0]
[1718347651899,0.34,148.26,148.17,20.0]
[1718347652105,0.34,148.26,148.17,11.78287048]
[1718347652304,0.34,148.26,148.18,20.0]
[1718347652832,51.1344,148.27,148.18,40.31]
[1718347652833,10.2444,148.27,148.18,40.31]
[1718347653045,10.2444,148.27,148.19,45.0]
[1718347653206,10.2444,148.27,148.2,20.0]
[1718347653514,51.6281529,148.31,148.21,45.0]
[1718347653711,51.6281529,148.31,148.22,20.0]
[1718347654504,51.6281529,148.31,148.21,20.0]
[1718347654731,51.6281529,148.31,148.19,2.6667]
[1718347654930,51.6281529,148.31,148.2,0.17]
[1718347655104,51.6281529,148.31,148.2,20.17]
[1718347655305,151.6281529,148.31,148.2,20.0]
[1718347655506,51.6281529,148.31,148.21,45.0]
[1718347655912,51.6281529,148.31,148.22,20.0]
[1718347656116,51.6281529,148.31,148.23,45.0]
[1718347656342,11.0781529,148.31,148.23,45.0]
[1718347657250,0.8337529,148.31,148.24,20.48]
[1718347657421,0.8337529,148.31,148.25,85.31]
[1718347658046,0.8337529,148.31,148.27,2.4954]
[1718347658221,0.8337529,148.31,148.28,0.51]
[1718347658418,0.8337529,148.31,148.26,2.8355]
[1718347658720,0.8337529,148.31,148.26,0.17]
[1718347659024,0.8337529,148.31,148.28,0.17]
[1718347659456,0.8337529,148.31,148.27,45.0]
[1718347659633,0.8337529,148.31,148.27,65.0]
[1718347659845,0.8337529,148.31,148.25,20.0]
[1718347660455,0.8337529,148.31,148.23,20.0]
[1718347660826,0.8337529,148.31,148.22,9.28587048]
[1718347661145,6.2206,148.3,148.22,9.28587048]
[1718347661527,0.17,148.29,148.22,9.28587048]
[1718347662524,0.17,148.29,148.18,18.13547048]
[1718347663035,10.2444,148.28,148.18,9.28587048]
[1718347663227,0.34,148.27,148.18,9.28587048]
[1718347663834,0.17,148.26,148.12,91.00623508]
[1718347664133,0.34,148.26,148.14,11.78347048]
[1718347664336,0.34,148.25,148.14,32.09347048]
[1718347664735,0.17,148.24,148.14,9.28587048]
[1718347664952,47.1124,148.23,148.14,9.28587048]
[1718347665166,0.68,148.22,148.11,2.498]
[1718347665368,0.68,148.22,148.11,52.09387048]
[1718347665857,0.68,148.22,148.12,2.4979]
[1718347666253,0.68,148.22,148.11,29.28587048]
[1718347666451,186.23,148.22,148.11,29.28587048]
[1718347666638,0.17,148.2,148.11,29.28587048]
[1718347666837,0.68,148.2,148.07,27.003267]
[1718347667146,0.17,148.18,148.06,28.11083131]
[1718347667336,0.51,148.18,148.08,2.4985]
[1718347667545,0.51,148.18,148.07,29.59587048]
[1718347667546,0.68,148.18,148.09,2.4984]
[1718347667862,0.68,148.18,148.07,32.09457048]
[1718347668269,0.68,148.18,148.07,29.59587048]
[1718347668435,0.68,148.18,148.08,20.0]
[1718347668635,0.68,148.18,148.08,42.8086]
[1718347669345,0.68,148.18,148.09,2.4984]
[1718347669654,0.68,148.18,148.08,87.8085]
[1718347669856,0.68,148.18,148.09,45.0]
[1718347670055,0.68,148.18,148.1,20.0]
[1718347670243,40.72,148.16,148.04,20.31]
[1718347670580,0.51,148.15,148.05,20.0]
[1718347670867,0.17,148.16,148.07,22.8086]
[1718347671040,0.51,148.16,148.08,20.0]
[1718347671238,41.06,148.16,148.08,20.0]
[1718347671630,41.06,148.16,148.07,20.0]
[1718347671834,141.06,148.16,148.07,20.0]
[1718347672136,0.17,148.13,148.03,2.4994]
[1718347672337,40.55,148.12,148.03,9.28587048]
[1718347672551,0.34,148.11,148.03,9.28587048]
[1718347672762,0.51,148.11,148.03,9.28587048]
[1718347672939,0.34,148.11,148.03,9.28587048]
[1718347673454,40.55,148.12,148.03,9.28587048]
[1718347673647,10.7544,148.13,148.03,11.78527048]
[1718347673861,0.34,148.12,148.04,65.0]
[1718347675167,10.2444,148.13,148.04,87.8092]
[1718347675466,10.2444,148.13,148.05,23.1491]
[1718347675766,10.2444,148.13,148.06,65.0]
[1718347676973,40.55,148.16,148.06,65.0]
[1718347677133,0.17,148.15,148.06,67.4989]
[1718347677334,16.8912,148.17,148.07,22.8087]
[1718347677335,16.5512,148.17,148.07,22.8087]
[1718347677539,16.5512,148.17,148.08,67.8385]
[1718347677851,16.5512,148.17,148.08,65.0]
[1718347678856,0.34,148.16,148.08,65.0]
[1718347679578,0.34,148.16,148.08,20.0]
[1718347679870,0.34,148.16,148.06,20.0]
[1718347680070,0.34,148.16,148.07,47.4987]
[1718347680281,0.34,148.16,148.08,20.0]
[1718347680777,57.1012,148.17,148.09,45.0]
[1718347681992,0.34,148.16,148.08,20.0]
[1718347682184,0.34,148.16,148.06,42.8089]
[1718347682361,16.5512,148.17,148.08,2.4986]
[1718347682567,16.5512,148.17,148.09,2.4983]
[1718347682763,16.5512,148.17,148.09,47.4983]
[1718347683080,16.5512,148.17,148.1,20.0]
[1718347683373,100.0,148.21,148.11,45.0]
[1718347683374,57.4309,148.21,148.11,45.0]
[1718347683579,16.8809,148.21,148.12,20.0]
[1718347684569,0.34,148.2,148.12,20.0]
[1718347685165,0.17,148.19,148.12,20.0]